fUST/lending_fUST_20260101
["ID","MTS","AMOUNT","RATE_DAILY","PERIOD"]
[400268714,1767245443352,-350.0,0.00034521,5]
[400268715,1767245443361,-163.0,0.00034521,30]
[400268716,1767245443371,-480.45,0.00034615,60]
[400268717,1767245443380,-1608.26373007,0.00034693,2]
[400268718,1767245443389,-480.45,0.00034715,60]
[400268719,1767245443399,-574.69,0.00034794,37]
[400268720,1767245443411,-480.45,0.00034815,60]
[400268721,1767245443420,-563.89002652,0.00034834,120]
[400268722,1767245443430,-1063.11433124,0.000349,120]
[400268723,1767245443440,-181.86492436,0.000349,120]
[400268724,1767245443450,-208.62713506,0.000349,120]
[400268725,1767245443462,-480.45,0.00034915,60]
[400268726,1767245443471,-200.61641,0.00035,120]
[400268727,1767245443480,-151.62700906,0.00035,120]
[400268728,1767245443490,-160.0,0.00035,14]
[400268729,1767245443500,-26286.94111316,0.00035,120]
[400268730,1767245443509,-932.11630139,0.00035,14]
[400268731,1767245443518,-1018.0,0.00035,7]
[400268732,1767245443527,-480.45,0.00035015,60]
[400268733,1767245443539,-480.45,0.00035115,60]
[400268734,1767245443548,-480.45,0.00035215,60]
[400268735,1767245443558,-152.81821803,0.00035215,2]
[400268736,1767245443568,-265284.29415864,0.00035258,2]
[400268737,1767245443578,-184.342731,0.00035258,31]
[400268738,1767245443588,-645.545712,0.00035258,31]
[400268739,1767245443598,-645.545712,0.00035258,31]
[400268740,1767245443608,-645.545712,0.00035258,31]
[400268741,1767245443618,-151.364763,0.00035258,2]
[400268742,1767245443627,-190.661454,0.00035258,31]
[400268743,1767245443637,-645.545712,0.00035258,31]
[400268744,1767245443646,-151.0,0.00035258,31]
[400268745,1767245443656,-151.0,0.00035258,31]
[400268746,1767245443666,-151.0,0.00035258,31]
[400268747,1767245443675,-154.9072,0.00035258,31]
[400268748,1767245443685,-151.0,0.00035258,31]
[400268749,1767245443694,-151.0,0.00035258,31]
[400268750,1767245443703,-151.0,0.00035258,31]
[400268751,1767245443713,-1247.87245,0.00035258,31]
[400268752,1767245443722,-1247.87245,0.00035258,31]
[400268753,1767245443734,-1247.87245,0.00035258,31]
[400268754,1767245443743,-1247.87245,0.00035258,31]
[400268756,1767245443753,-319.90377,0.00035258,31]
[400268758,1767245443762,-343.845219,0.00035258,31]
[400268759,1767245443771,-319.90377,0.00035258,31]
[400268761,1767245443780,-343.845219,0.00035258,31]
[400268763,1767245443789,-319.90377,0.00035258,31]
[400268764,1767245443798,-343.845219,0.00035258,31]
[400268766,1767245443808,-319.90377,0.00035258,31]
[400268767,1767245443817,-343.845219,0.00035258,31]
[400268768,1767245443827,-158.480917,0.00035258,31]
[400268769,1767245443836,-158.480917,0.00035258,31]
[400268770,1767245443848,-158.480917,0.00035258,31]
[400268772,1767245443858,-151.0,0.00035258,31]
[400268773,1767245443867,-158.480917,0.00035258,31]
[400268774,1767245443877,-151.0,0.00035258,31]
[400268775,1767245443886,-566.208767,0.00035258,31]
[400268776,1767245443896,-566.208767,0.00035258,31]
[400268777,1767245443905,-566.208767,0.00035258,31]
[400268778,1767245443915,-566.208767,0.00035258,31]
[400268779,1767245443924,-2000.0,0.00035309,15]
[400268780,1767245443933,-480.45,0.00035315,60]
[400268781,1767245443942,-574.69,0.00035342,38]
[400268782,1767245443952,-480.45,0.00035415,60]
[400268783,1767245443961,-480.45,0.00035515,60]
[400268784,1767245443970,-1608.26373007,0.00035539,2]
[400268785,1767245443979,-480.45,0.00035615,60]
[400268786,1767245443989,-200.0,0.0003566,120]
[400268787,1767245443998,-151.0,0.00035683,30]
[400268788,1767245444007,-71428.56,0.000357,14]
[400268789,1767245444016,-480.45,0.00035715,60]
[400268790,1767245444025,-2157.0,0.0003576,2]
[400268791,1767245444034,-1364.0,0.0003576,2]
[400268792,1767245444044,-628.0,0.0003576,2]
[400268793,1767245444053,-416.0,0.0003576,2]
[400268794,1767245444062,-416.0,0.0003576,2]
[400268795,1767245444071,-480.45,0.00035815,60]
[400268796,1767245444081,-540.51525,0.00035885,2]
[400268797,1767245444091,-574.69,0.0003589,39]
[400268798,1767245444101,-1063.11433124,0.000359,120]
[400268799,1767245444110,-480.45,0.00035915,60]
[400268800,1767245444119,-540.51525,0.00035985,2]
[400268801,1767245444128,-213439.29868761,0.00035999,7]
[400268802,1767245444138,-1173.570712,0.00035999,31]
[400268803,1767245444148,-1173.570712,0.00035999,31]
[400268804,1767245444157,-1173.570712,0.00035999,31]
[400268805,1767245444167,-1173.570712,0.00035999,31]
[400268806,1767245444176,-200.0,0.00035999,7]
[400268807,1767245444185,-200.0,0.00035999,7]
[400268808,1767245444196,-200.0,0.00035999,7]
[400268809,1767245444205,-200.0,0.00035999,7]
[400268810,1767245444214,-200.0,0.00035999,7]
[400268811,1767245444223,-200.0,0.00035999,7]
[400268812,1767245444233,-151.0,0.00035999,31]
[400268813,1767245444242,-151.0,0.00035999,31]
[400268814,1767245444251,-480.45,0.00036015,60]
[400268815,1767245444260,-540.51525,0.00036085,2]
[400268816,1767245444369,-480.45,0.00036115,60]
[400268817,1767245444379,-540.51525,0.00036185,2]
[400268818,1767245444389,-457.37133152,0.00036192,2]
[400268819,1767245444399,-480.45,0.00036215,60]
[400268820,1767245444409,-163.0,0.00036247,30]
[400268821,1767245444419,-540.51525,0.00036285,2]
[400268822,1767245444428,-480.45,0.00036315,60]
[400268823,1767245444437,-500.0,0.0003632,30]
[400268824,1767245444447,-500.0,0.0003632,30]
[400268825,1767245444459,-500.0,0.0003632,30]
[400268826,1767245444470,-500.0,0.0003632,30]
[400268827,1767245444480,-603.09510429,0.0003632,30]
[400268828,1767245444489,-1608.26373007,0.00036384,2]
[400268829,1767245444499,-540.51525,0.00036385,2]
[400268830,1767245444508,-480.45,0.00036415,60]
[400268831,1767245444518,-574.69,0.00036438,40]
[400268832,1767245444527,-540.51525,0.00036485,2]
[400268833,1767245444538,-480.618,0.00036515,60]
[400268834,1767245444548,-540.51525,0.00036585,2]
[400268835,1767245444557,-596.01034448,0.00036834,120]
[400268836,1767245444567,-200.0,0.00036874,120]
[400268837,1767245444577,-5000.0,0.00036985,15]
[400268838,1767245444587,-574.69,0.00036986,41]
[400268839,1767245444596,-5000.0,0.00036998,10]
[400268840,1767245444606,-184.44805127,0.00037,120]
[400268841,1767245444615,-154.69,0.00037,7]
[400268842,1767245444625,-1063.11433124,0.00037,120]
[400268843,1767245444634,-5000.0,0.00037022,15]
[400268844,1767245444644,-16542.29589235,0.00037029,17]
[400268846,1767245444908,-3e-08,0.00027397,7]
[400268851,1767245880571,162.18,9.99e-05,2]
[400268852,1767245880953,162.18,9.99e-05,2]
[400268853,1767245881274,162.16,9.99e-05,2]
[400268854,1767245882075,198.57,9.99e-05,2]
[400268858,1767246050939,514.59289517,0.00010765,2]
[400268859,1767246075838,649.22549976,0.00010764,2]
[400268860,1767246393967,3343.74840903,9.777e-05,2]
[400268861,1767246393989,4002.57229267,9.777e-05,2]
[400268862,1767246416844,519.3803998,0.00010764,2]
[400268863,1767246433173,-300.0,0.00010774,2]
[400268864,1767246446923,291.6739451,9.779e-05,2]
[400268865,1767246495163,-300.0,0.00010774,2]
[400268866,1767246495190,-300.0,0.00010774,2]
[400268867,1767246495312,-1200.0,0.00010774,2]
[400268868,1767246506619,6400.01,0.00010677,2]
[400268869,1767246506644,10000.01,0.00010677,2]
[400268870,1767246506670,10000.01,0.00010677,2]
[400268871,1767246506696,10000.01,0.00010677,2]
[400268872,1767246506721,10000.01,0.00010677,2]
[400268873,1767246506746,10000.01,0.00010677,2]
[400268874,1767246506771,10000.01,0.00010677,2]
[400268875,1767246506797,10000.01,0.00010677,2]
[400268876,1767246506822,10000.01,0.00010677,2]
[400268877,1767246506847,10000.01,0.00010677,2]
[400268878,1767246516541,-338.17039888,0.00010676,2]
[400268879,1767246516577,-500.0,0.00010676,2]
[400268880,1767246516614,-500.0,0.00010676,2]
[400268881,1767246516650,-500.0,0.00010676,2]
[400268882,1767246516685,-500.0,0.00010676,2]
[400268883,1767246516720,-500.0,0.00010676,2]
[400268884,1767246516754,-500.0,0.00010676,2]
[400268885,1767246516789,-500.0,0.00010676,2]
[400268886,1767246516821,-500.0,0.00010676,2]
[400268887,1767246517001,-500.0,0.00010676,2]
[400268888,1767246517030,-154.36653582,0.00010676,2]
[400268889,1767246517197,-500.0,0.00010676,2]
[400268890,1767246517226,-500.0,0.00010676,2]
[400268891,1767246517256,-500.0,0.00010676,2]
[400268892,1767246517287,-500.0,0.00010676,2]
[400268893,1767246517316,-500.0,0.00010676,2]
[400268894,1767246517347,-500.0,0.00010676,2]
[400268895,1767246517375,-500.0,0.00010676,2]
[400268896,1767246517402,-500.0,0.00010676,2]
[400268897,1767246517428,-194.49347699,0.00010676,2]
[400268898,1767246517456,-199.34374529,0.00010676,2]
[400268899,1767246517483,-500.0,0.00010676,2]
[400268900,1767246517539,-500.0,0.00010676,2]
[400268901,1767246517567,-500.0,0.00010676,2]
[400268902,1767246517595,-500.0,0.00010676,2]
[400268903,1767246517623,-500.0,0.00010676,2]
[400268904,1767246517650,-500.0,0.00010676,2]
[400268905,1767246517679,-500.0,0.00010676,2]
[400268906,1767246517709,-500.0,0.00010676,2]
[400268907,1767246517735,-589.40919824,0.00010676,2]
[400268908,1767246517764,-500.0,0.00010676,2]
[400268909,1767246517791,-321.19160352,0.00010676,2]
[400268910,1767246517878,-178.80839648,0.00010676,2]
[400268911,1767246517904,-530.60597623,0.00010676,2]
[400268912,1767246517932,-500.0,0.00010676,2]
[400268913,1767246517960,-500.0,0.00010676,2]
[400268914,1767246517986,-267.89132772,0.00010676,2]
[400268915,1767246518014,-500.0,0.00010676,2]
[400268916,1767246518042,-500.0,0.00010676,2]
[400268917,1767246518068,-500.0,0.00010676,2]
[400268918,1767246518096,-500.0,0.00010676,2]
[400268919,1767246518124,-500.0,0.00010676,2]
[400268920,1767246518152,-500.0,0.00010676,2]
[400268921,1767246518194,-500.0,0.00010676,2]
[400268922,1767246518223,-500.0,0.00010676,2]
[400268923,1767246518256,-500.0,0.00010676,2]
[400268924,1767246518283,-500.0,0.00010676,2]
[400268925,1767246518312,-500.0,0.00010676,2]
[400268926,1767246518341,-500.0,0.00010676,2]
[400268927,1767246518370,-500.0,0.00010676,2]
[400268928,1767246518399,-500.0,0.00010676,2]
[400268929,1767246518428,-500.0,0.00010676,2]
[400268930,1767246518457,-500.0,0.00010676,2]
[400268931,1767246518573,-500.0,0.00010676,2]
[400268932,1767246518602,-500.0,0.00010676,2]
[400268933,1767246518629,-500.0,0.00010676,2]
[400268934,1767246518659,-500.0,0.00010676,2]
[400268935,1767246518687,-500.0,0.00010676,2]
[400268936,1767246518717,-500.0,0.00010676,2]
[400268937,1767246518746,-500.0,0.00010676,2]
[400268938,1767246518774,-500.0,0.00010676,2]
[400268939,1767246518803,-500.0,0.00010676,2]
[400268940,1767246518832,-500.0,0.00010676,2]
[400268941,1767246519483,-500.0,0.00010676,2]
[400268942,1767246519504,-237.19955018,0.00010676,2]
[400268943,1767246520095,-262.80044982,0.00010676,2]
[400268944,1767246520126,-500.0,0.00010676,2]
[400268945,1767246520155,-500.0,0.00010676,2]
[400268946,1767246520184,-500.0,0.00010676,2]
[400268947,1767246520212,-500.0,0.00010676,2]
[400268948,1767246520238,-500.0,0.00010676,2]
[400268949,1767246520272,-500.0,0.00010676,2]
[400268950,1767246520303,-500.0,0.00010676,2]
[400268951,1767246520335,-500.0,0.00010676,2]
[400268952,1767246520365,-500.0,0.00010676,2]
[400268953,1767246520403,-500.0,0.00010676,2]
[400268954,1767246520431,-500.0,0.00010676,2]
[400268955,1767246520460,-500.0,0.00010676,2]
[400268956,1767246520489,-500.0,0.00010676,2]
[400268957,1767246520517,-500.0,0.00010676,2]
[400268958,1767246520547,-500.0,0.00010676,2]
[400268959,1767246520666,-500.0,0.00010676,2]
[400268960,1767246520695,-500.0,0.00010676,2]
[400268961,1767246520724,-500.0,0.00010676,2]
[400268962,1767246520752,-500.0,0.00010676,2]
[400268963,1767246520791,-500.0,0.00010676,2]
[400268964,1767246520821,-500.0,0.00010676,2]
[400268965,1767246520851,-500.0,0.00010676,2]
[400268966,1767246520879,-500.0,0.00010676,2]
[400268967,1767246520906,-500.0,0.00010676,2]
[400268968,1767246520934,-500.0,0.00010676,2]
[400268969,1767246520964,-500.0,0.00010676,2]
[400268970,1767246520996,-500.0,0.00010676,2]
[400268971,1767246521024,-500.0,0.00010676,2]
[400268972,1767246521051,-500.0,0.00010676,2]
[400268973,1767246521566,-374.93897584,0.00010676,2]
[400268974,1767246522527,-90.1080035,0.00010676,2]
[400268975,1767246522551,-197.38491591,0.00010676,2]
[400268976,1767246525451,-302.61508409,0.00010676,2]
[400268977,1767246525475,-15.03176576,0.00010676,2]
[400268978,1767246526923,-300.0,0.00010676,2]
[400268979,1767246528580,-184.96823424,0.00010676,2]
[400268980,1767246528609,-500.0,0.00010676,2]
[400268981,1767246528636,-500.0,0.00010676,2]
[400268982,1767246528664,-500.0,0.00010676,2]
[400268983,1767246528693,-500.0,0.00010676,2]
[400268984,1767246528721,-500.0,0.00010676,2]
[400268985,1767246528750,-500.0,0.00010676,2]
[400268986,1767246528776,-500.0,0.00010676,2]
[400268987,1767246528804,-500.0,0.00010676,2]
[400268988,1767246528831,-500.0,0.00010676,2]
[400268989,1767246528860,-130.07353152,0.00010676,2]
[400268990,1767246528989,-369.92646848,0.00010676,2]
[400268991,1767246529017,-500.0,0.00010676,2]
[400268992,1767246529044,-345.111693,0.00010676,2]
[400268993,1767246529071,-500.0,0.00010676,2]
[400268994,1767246529099,-500.0,0.00010676,2]
[400268995,1767246529126,-594.07682672,0.00010676,2]
[400268996,1767246529153,-500.0,0.00010676,2]
[400268997,1767246529180,-500.0,0.00010676,2]
[400268998,1767246529209,-500.0,0.00010676,2]
[400268999,1767246529236,-500.0,0.00010676,2]
[400269000,1767246529483,-218.83812715,0.00010676,2]
[400269001,1767246530083,-281.16187285,0.00010676,2]
[400269002,1767246530113,-500.0,0.00010676,2]
[400269003,1767246531191,-326.65483128,0.00010677,2]
[400269004,1767246533019,212.8333672,9.778e-05,2]
[400269005,1767246534307,-161.02517434,0.00010677,2]
[400269006,1767246535258,5000.0,0.00010677,2]
[400269007,1767246536511,-271.0,0.00010677,2]
[400269008,1767246537951,-283.87043382,0.00010677,2]
[400269009,1767246540980,-169.32352975,0.00010677,2]
[400269010,1767246542262,300.0,0.00010676,2]
[400269011,1767246542386,-205.14083363,0.00010677,2]
[400269012,1767246544040,-503.11240054,0.00010677,2]
[400269013,1767246545695,-304.0,0.00010677,2]
[400269014,1767246547166,-625.42610291,0.00010677,2]
[400269015,1767246549430,-293.98603582,0.00010677,2]
[400269016,1767246550962,-557.58574659,0.00010677,2]
[400269017,1767246553627,-187.23850627,0.00010677,2]
[400269018,1767246555103,-544.06,0.00010677,2]
[400269019,1767246557301,406.67755513,0.00010676,2]
[400269020,1767246557332,500.0,0.00010676,2]
[400269021,1767246557365,500.0,0.00010676,2]
[400269022,1767246557393,500.0,0.00010676,2]
[400269023,1767246557421,500.0,0.00010676,2]
[400269024,1767246557449,500.0,0.00010676,2]
[400269025,1767246557476,18.17533197,0.00010676,2]
[400269026,1767246557498,481.82466803,0.00010676,2]
[400269027,1767246557526,500.0,0.00010676,2]
[400269028,1767246557688,500.0,0.00010676,2]
[400269029,1767246557716,500.0,0.00010676,2]
[400269030,1767246557748,500.0,0.00010676,2]
[400269031,1767246557776,500.0,0.00010676,2]
[400269032,1767246557803,500.0,0.00010676,2]
[400269033,1767246557832,500.0,0.00010676,2]
[400269034,1767246557864,500.0,0.00010676,2]
[400269035,1767246557893,500.0,0.00010676,2]
[400269036,1767246557929,500.0,0.00010676,2]
[400269037,1767246557957,500.0,0.00010676,2]
[400269038,1767246557984,500.0,0.00010676,2]
[400269039,1767246558013,445.6190691,0.00010676,2]
[400269040,1767246558045,500.0,0.00010676,2]
[400269041,1767246558073,500.0,0.00010676,2]
[400269042,1767246558101,500.0,0.00010676,2]
[400269043,1767246558130,321.40278261,0.00010676,2]
[400269044,1767246558158,500.0,0.00010676,2]
[400269045,1767246558185,500.0,0.00010676,2]
[400269046,1767246558212,251.16348026,0.00010676,2]
[400269047,1767246558620,-153.07,0.00010676,2]
[400269048,1767246561590,-95.76651974,0.00010676,2]
[400269049,1767246561614,-414.00886497,0.00010676,2]
[400269050,1767246563699,-85.99113503,0.00010676,2]
[400269051,1767246563721,-132.71886497,0.00010676,2]
[400269052,1767246565054,-195.0,0.00010676,2]
[400269053,1767246567302,155.0,7.9e-07,2]
[400269054,1767246568354,155.0,7.9e-07,2]
[400269055,1767246570714,-312.86163821,0.00010676,2]
[400269056,1767246574900,-171.12242898,0.00010676,2]
[400269057,1767246577268,-16.01593281,0.00010676,2]
[400269058,1767246577295,-172.28113503,0.00010676,2]
[400269059,1767246577318,-43.40107913,0.00010676,2]
[400269060,1767246579119,-436.9597357,0.00010676,2]
[400269061,1767246581278,-19.63918517,0.00010676,2]
[400269062,1767246581302,-145.57081483,0.00010676,2]
[400269063,1767246583322,-302.27713325,0.00010676,2]
[400269064,1767246586616,-52.15205192,0.00010676,2]
[400269065,1767246586638,-247.84794808,0.00010676,2]
[400269066,1767246589871,-222.83310953,0.00010676,2]
[400269067,1767246591507,-29.31894239,0.00010676,2]
[400269068,1767246591529,-188.85098697,0.00010676,2]
[400269069,1767246598283,-247.3539234,0.00010676,2]
[400269070,1767246599886,-63.79508963,0.00010676,2]
[400269071,1767246599908,-165.46191991,0.00010676,2]
[400269072,1767246611544,-300.0,0.00010675,2]
[400269073,1767246611566,-300.0,0.00010675,2]
[400269074,1767246611586,-300.0,0.00010675,2]
[400269075,1767246611607,-1200.0,0.00010675,2]
[400269076,1767246611628,-300.0,0.00010675,2]
[400269077,1767246611648,-570.0,0.00010675,2]
[400269078,1767246611670,-334.53808009,0.00010676,2]
[400269079,1767246611692,-500.0,0.00010676,2]
[400269080,1767246611714,-500.0,0.00010676,2]
[400269081,1767246611736,-500.0,0.00010676,2]
[400269082,1767246611758,-500.0,0.00010676,2]
[400269083,1767246611780,-500.0,0.00010676,2]
[400269084,1767246611803,-500.0,0.00010676,2]
[400269085,1767246611824,-500.0,0.00010676,2]
[400269086,1767246611846,-500.0,0.00010676,2]
[400269087,1767246611867,-500.0,0.00010676,2]
[400269088,1767246611888,-500.0,0.00010676,2]
[400269089,1767246611911,-500.0,0.00010676,2]
[400269090,1767246611934,-500.0,0.00010676,2]
[400269091,1767246611955,-500.0,0.00010676,2]
[400269092,1767246611977,-500.0,0.00010676,2]
[400269093,1767246611999,-500.0,0.00010676,2]
[400269094,1767246612020,-500.0,0.00010676,2]
[400269095,1767246612043,-500.0,0.00010676,2]
[400269096,1767246612064,-500.0,0.00010676,2]
[400269097,1767246612087,-500.0,0.00010676,2]
[400269098,1767246612108,-500.0,0.00010676,2]
[400269099,1767246612130,-500.0,0.00010676,2]
[400269100,1767246612154,-500.0,0.00010676,2]
[400269101,1767246612176,-500.0,0.00010676,2]
[400269102,1767246612198,-500.0,0.00010676,2]
[400269103,1767246612221,-500.0,0.00010676,2]
[400269104,1767246612243,-500.0,0.00010676,2]
[400269105,1767246612267,-500.0,0.00010676,2]
[400269106,1767246612289,-500.0,0.00010676,2]
[400269107,1767246612315,-500.0,0.00010676,2]
[400269108,1767246612339,-500.0,0.00010676,2]
[400269109,1767246612365,-500.0,0.00010676,2]
[400269110,1767246612504,-500.0,0.00010676,2]
[400269111,1767246612533,-500.0,0.00010676,2]
[400269112,1767246612557,-500.0,0.00010676,2]
[400269113,1767246612578,-500.0,0.00010676,2]
[400269114,1767246612602,-500.0,0.00010676,2]
[400269115,1767246612625,-500.0,0.00010676,2]
[400269116,1767246612647,-500.0,0.00010676,2]
[400269117,1767246612670,-394.21770957,0.00010676,2]
[400269118,1767246612692,-500.0,0.00010676,2]
[400269119,1767246612715,-500.0,0.00010676,2]
[400269120,1767246612737,-500.0,0.00010676,2]
[400269121,1767246612760,-500.0,0.00010676,2]
[400269122,1767246612784,-500.0,0.00010676,2]
[400269123,1767246612807,-500.0,0.00010676,2]
[400269124,1767246612829,-500.0,0.00010676,2]
[400269125,1767246612851,-500.0,0.00010676,2]
[400269126,1767246612874,-500.0,0.00010676,2]
[400269127,1767246612897,-500.0,0.00010676,2]
[400269128,1767246612919,-500.0,0.00010676,2]
[400269129,1767246612942,-500.0,0.00010676,2]
[400269130,1767246612964,-500.0,0.00010676,2]
[400269131,1767246612987,-500.0,0.00010676,2]
[400269132,1767246613009,-500.0,0.00010676,2]
[400269133,1767246613031,-500.0,0.00010676,2]
[400269134,1767246613056,-500.0,0.00010676,2]
[400269135,1767246613079,-500.0,0.00010676,2]
[400269136,1767246613100,-249.99999999,0.00010676,2]
[400269137,1767246613122,-500.0,0.00010676,2]
[400269138,1767246613143,-500.0,0.00010676,2]
[400269139,1767246613165,-500.0,0.00010676,2]
[400269140,1767246613188,-500.0,0.00010676,2]
[400269141,1767246613209,-500.0,0.00010676,2]
[400269142,1767246613231,-500.0,0.00010676,2]
[400269143,1767246613252,-500.0,0.00010676,2]
[400269144,1767246613275,-500.0,0.00010676,2]
[400269145,1767246613297,-500.0,0.00010676,2]
[400269146,1767246613327,-500.0,0.00010676,2]
[400269147,1767246613350,-500.0,0.00010676,2]
[400269148,1767246613373,-500.0,0.00010676,2]
[400269149,1767246613396,-500.0,0.00010676,2]
[400269150,1767246613418,-500.0,0.00010676,2]
[400269151,1767246613440,-500.0,0.00010676,2]
[400269152,1767246613462,-5000.0,0.00010677,2]
[400269153,1767246613490,-605551.24421035,0.00010677,2]
[400269155,1767246629307,-2210.8148472,0.0001057,2]
[400269188,1767246632321,-205.66,0.00010676,2]
[400269190,1767246632331,-140.054,0.00010677,2]
[400269217,1767246638382,-293476.1781947,0.00010677,2]
[400269218,1767246638393,-210.24621092,0.00010726,2]
[400269219,1767246638402,-184.03675397,0.00010778,2]
[400269220,1767246638411,-151.0,0.00010778,2]
[400269221,1767246638420,-151.0,0.00010778,2]
[400269222,1767246638429,-153.83071478,0.00010778,2]
[400269223,1767246638439,-150.0,0.00010864,2]
[400269224,1767246638448,-150.39445871,0.00010864,2]
[400269225,1767246638458,-150.0,0.00010864,2]
[400269226,1767246638467,-150.0,0.00010864,2]
[400269227,1767246638476,-150.0,0.00010864,2]
[400269228,1767246638485,-150.0,0.00010864,2]
[400269229,1767246638494,-150.0,0.00010864,2]
[400269230,1767246638504,-150.0,0.00010864,2]
[400269231,1767246638513,-50000.0,0.00010864,2]
[400269232,1767246638522,-205.67447394,0.0001095,2]
[400269233,1767246638531,-500.0,0.00010959,2]
[400269234,1767246638541,-500.0,0.00010959,2]
[400269235,1767246638551,-500.0,0.00010959,2]
[400269236,1767246638560,-500.0,0.00010959,2]
[400269237,1767246638570,-500.0,0.00010959,2]
[400269238,1767246638581,-204.79883792,0.00010959,2]
[400269239,1767246638591,-500.0,0.00010959,2]
[400269240,1767246638600,-500.0,0.00010959,2]
[400269241,1767246638610,-150.0,0.00011001,2]
[400269242,1767246638624,-215.28294886,0.00011001,2]
[400269243,1767246638635,-150.0,0.00011001,2]
[400269244,1767246638644,-250.0,0.00011001,2]
[400269245,1767246638654,-150.0,0.00011001,2]
[400269246,1767246638664,-150.0,0.00011001,2]
[400269247,1767246638673,-250.0,0.00011001,2]
[400269248,1767246638683,-224.93036213,0.00011138,2]
[400269249,1767246638693,-201.0951248,0.00011138,2]
[400269250,1767246638703,-150.0,0.00011138,2]
[400269251,1767246638712,-201.75567666,0.00011138,2]
[400269252,1767246638722,-150.0,0.00011275,2]
[400269253,1767246638731,-250.0,0.00011412,2]
[400269254,1767246638741,-363.0,0.00011735,2]
[400269255,1767246638751,-420.0,0.00011735,2]
[400269256,1767246638760,-420.0,0.00011735,2]
[400269257,1767246638770,-669.0,0.00011842,2]
[400269258,1767246638780,-301.0,0.00011852,2]
[400269259,1767246638790,-150.0,0.00011973,2]
[400269260,1767246638799,-1364.38,0.00012329,2]
[400269261,1767246638809,-1136.99,0.00012329,2]
[400269262,1767246638818,-947.49,0.00012329,2]
[400269263,1767246638828,-789.57,0.00012329,2]
[400269264,1767246638838,-657.98,0.00012329,2]
[400269265,1767246638847,-548.31,0.00012329,2]
[400269266,1767246638856,-456.93,0.00012329,2]
[400269267,1767246638865,-380.77,0.00012329,2]
[400269268,1767246638875,-317.31,0.00012329,2]
[400269269,1767246638885,-264.43,0.00012329,2]
[400269270,1767246638895,-220.36,0.00012329,2]
[400269271,1767246638904,-183.63,0.00012329,2]
[400269272,1767246638913,-153.02,0.00012329,2]
[400269273,1767246638923,-765.15,0.00012329,2]
[400269274,1767246638932,-565.97256515,0.00012399,2]
[400269275,1767246638942,-248.09052889,0.00012726,2]
[400269276,1767246638952,-587.0,0.00012899,2]
[400269277,1767246638961,-302.0,0.00012899,2]
[400269278,1767246638971,-565.97256515,0.00013115,2]
[400269279,1767246638980,-264.63,0.00013163,2]
[400269280,1767246638990,-1135.23,0.00013173,2]
[400269281,1767246638999,-463.36,0.00013173,2]
[400269282,1767246639009,-500.0,0.00013273,2]
[400269283,1767246639018,-500.0,0.00013273,2]
[400269284,1767246639028,-500.0,0.00013273,2]
[400269285,1767246639038,-500.0,0.00013273,2]
[400269286,1767246639048,-500.0,0.00013273,2]
[400269287,1767246639057,-500.0,0.00013273,2]